bitfinex/quotes_BTCUSD_20240727
["timestamp","ask_amount","ask_price","bid_price","bid_amount"]
[1722091503565,0.144576,69168.0,69165.0,0.023]
[1722091503718,0.144576,69168.0,69166.0,0.01006084]
[1722091503916,0.144576,69168.0,69167.0,0.023]
[1722091504122,0.144576,69168.0,69167.0,0.03306053]
[1722091504772,1.012029,69168.0,69167.0,0.01006053]
[1722091504970,0.0828,69168.0,69159.0,0.0636]
[1722091505185,0.07512979,69163.0,69160.0,0.03309611]
[1722091505341,0.14459,69161.0,69160.0,0.01009611]
[1722091505551,0.144594,69159.0,69157.0,0.0833]
[1722091505753,0.28918,69161.0,69158.0,0.01009907]
[1722091505955,0.144594,69159.0,69158.0,0.01009907]
[1722091506156,0.16728705,69159.0,69158.0,0.01009907]
[1722091506631,0.144597,69158.0,69156.0,0.0734283]
[1722091506840,0.07512979,69163.0,69154.0,0.003954]
[1722091506841,0.723012,69155.0,69154.0,0.003954]
[1722091507021,0.433807,69155.0,69154.0,0.003954]
[1722091507238,0.144602,69155.0,69154.0,0.003954]
[1722091507444,0.433807,69155.0,69154.0,0.003954]
[1722091508632,0.723012,69155.0,69154.0,0.003954]
[1722091509694,0.723012,69155.0,69154.0,0.009954]
[1722091509893,0.723012,69155.0,69154.0,0.018954]
[1722091510567,0.7457068,69155.0,69154.0,0.018954]
[1722091510756,1.012217,69155.0,69154.0,0.018954]
[1722091513244,0.723012,69155.0,69154.0,0.103454]
[1722091513878,0.289183,69161.0,69154.0,0.165254]
[1722091514117,0.515156,69163.0,69162.0,0.0845]
[1722091514394,1.093498,69163.0,69162.0,0.0845]
[1722091515047,1.11619202,69163.0,69162.0,0.0845]
[1722091516280,1.11819202,69163.0,69162.0,0.0845]
[1722091517808,0.144602,69155.0,69154.0,0.065754]
[1722091518024,0.144602,69155.0,69154.0,0.150254]
[1722091518173,0.723012,69155.0,69154.0,0.01254586]
[1722091518373,1.156117,69155.0,69154.0,0.088454]
[1722091518574,1.178812,69155.0,69154.0,0.088454]
[1722091518879,1.156117,69155.0,69154.0,0.003954]
[1722091520651,1.156117,69155.0,69154.0,0.018954]
[1722091522011,1.178812,69155.0,69154.0,0.018954]
[1722091523454,1.445322,69155.0,69154.0,0.012954]
[1722091523841,1.447322,69155.0,69154.0,0.003954]
[1722091524250,1.446322,69155.0,69154.0,0.004954]
[1722091524469,1.445322,69155.0,69154.0,0.003954]
[1722091524890,1.446322,69155.0,69154.0,0.004954]
[1722091525266,1.157117,69155.0,69154.0,0.004954]
[1722091526569,1.17981399,69155.0,69154.0,0.004954]
[1722091527974,1.157117,69155.0,69154.0,0.004954]
[1722091528430,1.5620337,69155.0,69154.0,0.004954]
[1722091528571,1.530822,69155.0,69154.0,0.004954]
[1722091528978,1.446322,69155.0,69154.0,0.004954]
[1722091529172,1.094617,69155.0,69154.0,0.004954]
[1722091529418,1.013217,69155.0,69154.0,0.004954]
[1722091530356,1.016217,69155.0,69154.0,0.005954]
[1722091530559,1.092617,69155.0,69154.0,0.005954]
[1722091531546,1.11531442,69155.0,69154.0,0.005954]
[1722091534691,1.40451942,69155.0,69154.0,0.005954]
[1722091534906,1.46651942,69155.0,69154.0,0.005954]
[1722091535232,1.443822,69155.0,69154.0,0.005954]
[1722091535468,1.543822,69155.0,69154.0,0.005954]
[1722091537236,0.727012,69155.0,69154.0,0.005954]
[1722091537991,1.016217,69155.0,69154.0,0.005954]
[1722091538620,1.0389146,69155.0,69154.0,0.005954]
[1722091539232,1.016217,69155.0,69154.0,0.005954]
[1722091541709,1.03891449,69155.0,69154.0,0.005954]
[1722091542527,1.016217,69155.0,69154.0,0.005954]
[1722091543642,0.727012,69155.0,69154.0,0.005954]
[1722091543867,0.004,69155.0,69154.0,0.150054]
[1722091544245,0.004,69155.0,69154.0,0.15928408]
[1722091544427,0.004,69155.0,69154.0,0.30388808]
[1722091545420,0.004,69155.0,69154.0,0.59309708]
[1722091545747,0.02569559,69155.0,69154.0,0.30288808]
[1722091545958,0.02569559,69155.0,69154.0,0.15828408]
[1722091546160,0.02569559,69155.0,69154.0,0.16051265]
[1722091546484,0.289184,69160.0,69154.0,0.30411565]
[1722091546599,0.289184,69160.0,69154.0,0.15951265]
[1722091546600,0.001,69155.0,69154.0,0.15951265]
[1722091546806,0.001,69155.0,69154.0,0.07748408]
[1722091547003,0.145602,69155.0,69154.0,0.01418408]
[1722091547246,0.434807,69155.0,69154.0,0.01418408]
[1722091548657,0.724012,69155.0,69154.0,0.01418408]
[1722091548854,1.013217,69155.0,69154.0,0.01418408]
[1722091549096,1.013217,69155.0,69154.0,0.004954]
[1722091549326,1.012231,69154.0,69153.0,0.008897]
[1722091550361,0.723022,69154.0,69153.0,0.008897]
[1722091550557,0.144604,69154.0,69153.0,0.008897]
[1722091550757,0.289197,69157.0,69153.0,0.008897]
[1722091550960,0.144603,69155.0,69153.0,0.01848022]
[1722091551163,0.433808,69155.0,69154.0,0.07408174]
[1722091552102,0.433808,69155.0,69154.0,0.00958174]
[1722091552103,0.723013,69155.0,69154.0,0.00958174]
[1722091552309,1.367418,69155.0,69154.0,0.00958174]
[1722091552509,0.433813,69154.0,69153.0,0.009897]
[1722091552764,0.433813,69154.0,69153.0,0.008897]
[1722091552765,1.30144,69154.0,69153.0,0.008897]
[1722091553301,1.32413722,69154.0,69153.0,0.008897]
[1722091554244,1.46813722,69154.0,69153.0,0.008897]
[1722091554445,1.47113722,69154.0,69153.0,0.009897]
[1722091555244,1.47313722,69154.0,69153.0,0.009897]
[1722091555444,1.47113722,69154.0,69153.0,0.009897]
[1722091555874,1.86234622,69154.0,69153.0,0.010897]
[1722091556274,2.07354622,69154.0,69153.0,0.010897]
[1722091561704,1.57313722,69154.0,69153.0,0.010897]
[1722091561907,1.80702798,69154.0,69153.0,0.010897]
[1722091562787,1.95728755,69154.0,69153.0,0.010897]
[1722091563160,1.83058755,69154.0,69153.0,0.010897]
[1722091564065,2.11979655,69154.0,69153.0,0.010897]
[1722091565359,2.11979655,69154.0,69151.0,0.002]
[1722091565360,1.734693,69152.0,69151.0,0.002]
[1722091565556,1.98495257,69152.0,69151.0,0.002]
[1722091566671,1.834693,69152.0,69151.0,0.002]
[1722091567193,1.845693,69152.0,69151.0,0.003]
[1722091568046,2.13491,69152.0,69151.0,0.003]
[1722091568253,2.13491,69152.0,69149.0,0.008954]
[1722091568254,1.730243,69150.0,69149.0,0.008954]
[1722091568465,2.01163669,69150.0,69149.0,0.008954]
[1722091569092,1.301535,69149.0,69148.0,1e-06]
[1722091569336,1.541035,69149.0,69148.0,1e-06]
[1722091569494,2.26975457,69149.0,69148.0,1e-06]
[1722091569709,2.26975457,69149.0,69131.0,0.002]
[1722091569710,1.152053,69132.0,69131.0,0.002]
[1722091569916,1.236553,69132.0,69131.0,0.002]
[1722091570114,1.525854,69132.0,69131.0,0.002]
[1722091570316,1.625854,69132.0,69131.0,0.002]
[1722091570684,1.77611357,69132.0,69131.0,0.002]
[1722091571424,1.79011357,69132.0,69131.0,0.002]
[1722091571825,1.639854,69132.0,69131.0,0.002]
[1722091572001,1.625854,69132.0,69131.0,0.002]
[1722091573168,2.056155,69132.0,69131.0,0.002]
[1722091573810,2.0788626,69132.0,69131.0,0.002]
[1722091573980,2.0928626,69132.0,69131.0,0.002]
[1722091574243,2.24312217,69132.0,69131.0,0.002]
[1722091575014,2.22041457,69132.0,69131.0,0.002]
[1722091576597,2.070155,69132.0,69131.0,0.002924]
[1722091578269,2.09286306,69132.0,69131.0,0.002924]
[1722091579423,2.070155,69132.0,69131.0,0.002924]
[1722091580905,1.653043,69122.0,69121.0,0.002]
[1722091581120,1.753043,69122.0,69121.0,0.002]
[1722091581491,2.042386,69122.0,69121.0,0.002]
[1722091582294,2.20664557,69122.0,69121.0,0.002]
[1722091582676,2.2293552,69122.0,69121.0,0.002]
[1722091582877,2.056386,69122.0,69121.0,0.002]
[1722091583102,1.627543,69122.0,69121.0,0.002]
[1722091583309,1.416043,69122.0,69121.0,0.002]
[1722091583936,1.402043,69122.0,69121.0,0.002]
[1722091584332,1.430043,69122.0,69121.0,0.002]
[1722091584760,1.1267,69122.0,69121.0,0.002]
[1722091585667,1.14940885,69122.0,69121.0,0.002]
[1722091586247,1.1267,69122.0,69121.0,0.002]
[1722091586897,0.737357,69122.0,69121.0,0.0835]
[1722091587066,1.0267,69122.0,69121.0,0.0835]
[1722091587297,1.0127,69122.0,69121.0,0.0835]
[1722091587471,1.0267,69122.0,69121.0,0.0835]
[1722091588089,1.0127,69122.0,69121.0,0.0835]
[1722091588236,1.02851014,69122.0,69121.0,0.0835]
[1722091588443,1.03351014,69122.0,69121.0,0.0835]
[1722091588641,1.03351014,69122.0,69121.0,0.002]
[1722091589029,0.1,69132.0,69131.0,0.07298785]
[1722091589030,0.389301,69132.0,69131.0,0.07298785]
[1722091589293,0.75543531,69132.0,69131.0,0.07298785]
[1722091589472,1.33403731,69132.0,69131.0,0.07298785]
[1722091589676,1.64604586,69132.0,69131.0,0.07298785]
[1722091589876,1.35674486,69132.0,69131.0,0.07298785]
[1722091591075,1.33403731,69132.0,69131.0,0.07298785]
[1722091591286,1.34803731,69132.0,69131.0,0.07298785]
[1722091591473,1.36203731,69132.0,69131.0,0.07298785]
[1722091592489,0.561951,69132.0,69131.0,0.07298785]
[1722091592863,0.851252,69132.0,69131.0,0.08285163]
[1722091593080,0.851252,69132.0,69131.0,0.07298785]
[1722091593562,0.851252,69132.0,69131.0,0.15448785]
[1722091594204,0.837252,69132.0,69131.0,0.17609664]
[1722091594406,0.837252,69132.0,69131.0,0.15448785]
[1722091594658,0.846252,69132.0,69131.0,0.15448785]
[1722091594954,0.832252,69132.0,69131.0,0.15448785]
[1722091595285,0.842252,69132.0,69131.0,0.15448785]
[1722091595695,0.86495873,69132.0,69131.0,0.15448785]
[1722091596208,0.86495873,69132.0,69131.0,0.07298785]
[1722091596569,0.842252,69132.0,69131.0,0.07298785]
[1722091597176,0.842252,69132.0,69131.0,0.0828471]
[1722091597798,0.842252,69132.0,69131.0,0.07298785]
[1722091598397,0.86495873,69132.0,69131.0,0.07298785]
[1722091598962,0.842252,69132.0,69131.0,0.07298785]
[1722091599408,0.842252,69132.0,69131.0,0.08283555]
[1722091600351,0.842252,69132.0,69131.0,0.07298785]
[1722091600557,0.842252,69132.0,69131.0,0.08283555]
[1722091600794,0.842252,69132.0,69131.0,0.07298785]
[1722091601397,1.131553,69132.0,69131.0,0.07298785]
[1722091602143,1.15425993,69132.0,69131.0,0.07298785]
[1722091603750,1.131553,69132.0,69131.0,0.07298785]
[1722091604723,1.214453,69132.0,69131.0,0.07298785]
[1722091605223,1.588354,69132.0,69131.0,0.07298785]
[1722091605924,1.80201357,69132.0,69131.0,0.07298785]
[1722091606890,1.79201357,69132.0,69131.0,0.07298785]
[1722091607144,1.93291357,69132.0,69131.0,0.07298785]
[1722091608108,1.92391357,69132.0,69131.0,0.07298785]
[1722091608527,1.96062133,69132.0,69131.0,0.07298785]
[1722091608713,1.94662133,69132.0,69131.0,0.07298785]
[1722091608950,2.23592233,69132.0,69131.0,0.07298785]
[1722091609488,2.24992233,69132.0,69131.0,0.07298785]
[1722091609843,2.24992233,69132.0,69131.0,0.06245118]
[1722091610798,2.09966276,69132.0,69131.0,0.06245118]
[1722091611839,1.734586,69122.0,69121.0,0.002]
[1722091612126,2.046086,69122.0,69121.0,0.002]
[1722091612536,2.06879615,69122.0,69121.0,0.002]
[1722091613152,2.21905572,69122.0,69121.0,0.002]
[1722091613366,2.06879615,69122.0,69121.0,0.002]
[1722091613573,2.09379615,69122.0,69121.0,0.002]
[1722091614375,1.80445315,69122.0,69121.0,0.002]
[1722091614764,2.09379615,69122.0,69121.0,0.002]
[1722091614964,2.08079615,69122.0,69121.0,0.002]
[1722091615263,2.23105572,69122.0,69121.0,0.002]
[1722091617003,2.24505572,69122.0,69121.0,0.002]
[1722091617341,2.23305572,69122.0,69121.0,0.002]
[1722091617468,2.09679615,69122.0,69121.0,0.002]
[1722091618755,1.88529615,69122.0,69121.0,0.002]
[1722091618885,2.09679615,69122.0,69121.0,0.002]
[1722091621457,2.10929102,69122.0,69121.0,0.002]
[1722091622285,1.15319487,69122.0,69121.0,0.0638]
[1722091622694,1.44253787,69122.0,69121.0,0.0638]
[1722091622910,1.46524207,69122.0,69121.0,0.0638]
[1722091623114,1.17589907,69122.0,69121.0,0.0638]
[1722091623286,1.17589907,69122.0,69121.0,0.0078]
[1722091623896,1.012728,69120.0,69119.0,0.0791]
[1722091624097,1.112728,69120.0,69119.0,0.0791]
[1722091624797,1.012746,69119.0,69118.0,0.008954]
[1722091625130,1.112746,69119.0,69118.0,0.008954]
[1722091625481,1.402102,69119.0,69118.0,0.008954]
[1722091626299,1.402102,69119.0,69118.0,0.070754]
[1722091626504,1.402102,69119.0,69118.0,0.008954]
[1722091627259,1.416102,69119.0,69118.0,0.008954]
[1722091627442,1.45281292,69119.0,69118.0,0.008954]
[1722091628064,1.49562888,69119.0,69118.0,0.008954]
[1722091628304,1.45281292,69119.0,69118.0,0.008954]
[1722091629555,1.74216892,69119.0,69118.0,0.008954]
[1722091629926,1.88116892,69119.0,69118.0,0.008954]
[1722091631081,1.85316892,69119.0,69118.0,0.008954]
[1722091631786,1.844458,69119.0,69118.0,0.008954]
[1722091632187,1.830458,69119.0,69118.0,0.008954]
[1722091632565,1.858458,69119.0,69118.0,0.008954]
[1722091632966,1.844458,69119.0,69118.0,0.008954]
[1722091633390,1.830458,69119.0,69118.0,0.008954]
[1722091633814,1.402102,69119.0,69118.0,0.008954]
[1722091635009,1.416102,69119.0,69118.0,0.008954]
[1722091635390,1.430102,69119.0,69118.0,0.008954]
[1722091635608,1.402102,69119.0,69118.0,0.008954]
[1722091635842,1.416102,69119.0,69118.0,0.008954]
[1722091636063,1.430102,69119.0,69118.0,0.008954]
[1722091638463,1.490502,69119.0,69118.0,0.008954]
[1722091639268,1.51321301,69119.0,69118.0,0.008954]
[1722091639833,1.490502,69119.0,69118.0,0.008954]
[1722091640444,1.93011757,69119.0,69118.0,0.008954]
[1722091640645,1.302156,69116.0,69115.0,0.008954]
[1722091640840,1.541156,69116.0,69115.0,0.01890578]
[1722091641046,1.830524,69116.0,69115.0,0.01890578]
[1722091641563,2.119892,69116.0,69115.0,0.01890578]
[1722091641764,2.28528207,69116.0,69115.0,0.01890578]
[1722091642174,2.29928207,69116.0,69115.0,0.01890578]
[1722091642769,2.30799549,69116.0,69115.0,0.01890578]
[1722091642969,2.15773592,69116.0,69115.0,0.01890578]
[1722091643331,2.18573592,69116.0,69115.0,0.01890578]
[1722091643669,2.17173592,69116.0,69115.0,0.01890578]
[1722091643870,2.1630225,69116.0,69115.0,0.01890578]
[1722091644082,2.1490225,69116.0,69115.0,0.01890578]
[1722091644425,2.1630225,69116.0,69115.0,0.01890578]
[1722091645057,1.7810545,69116.0,69115.0,0.01890578]
[1722091645257,1.4312865,69116.0,69115.0,0.01890578]
[1722091645469,1.0559185,69116.0,69115.0,0.15690578]
[1722091646009,0.73742,69116.0,69115.0,0.15690578]
[1722091646365,0.75142,69116.0,69115.0,0.15690578]
[1722091646688,0.72342,69116.0,69115.0,0.15690578]
[1722091647092,0.74442,69116.0,69115.0,0.15690578]
[1722091647293,0.76713126,69116.0,69115.0,0.15690578]
[1722091647514,0.74442,69116.0,69115.0,0.15690578]
[1722091650201,0.76713171,69116.0,69115.0,0.15690578]
[1722091650926,0.74442,69116.0,69115.0,0.15690578]
[1722091652349,0.455052,69116.0,69115.0,0.15690578]
[1722091652750,0.74442,69116.0,69115.0,0.15690578]
[1722091653301,0.455052,69116.0,69115.0,0.15690578]
[1722091653683,0.74442,69116.0,69115.0,0.15690578]
[1722091654298,0.76713171,69116.0,69115.0,0.15690578]
[1722091654919,0.04371171,69116.0,69115.0,0.15690578]
[1722091655339,0.0227042,69122.0,69121.0,0.57712]
[1722091655528,0.45161872,69154.0,69121.0,0.57712]
[1722091655529,0.01210688,69150.0,69122.0,0.1431]
[1722091655667,0.01210688,69150.0,69128.0,0.1431]
[1722091655668,0.289267,69141.0,69128.0,0.1431]
[1722091655868,0.289267,69141.0,69128.0,0.15326981]
[1722091656212,0.14464,69137.0,69128.0,0.15326981]
[1722091656412,0.289278,69138.0,69128.0,0.15326981]
[1722091656682,0.144646,69134.0,69128.0,0.15326981]
[1722091656817,0.144651,69132.0,69128.0,0.15326981]
[1722091657250,0.434811,69129.0,69128.0,0.15326981]
[1722091657444,0.434811,69129.0,69128.0,0.09166981]
[1722091657801,0.146497,69129.0,69128.0,0.09166981]
[1722091657947,0.00184,69129.0,69128.0,0.09166981]
[1722091658126,0.146497,69129.0,69128.0,0.09166981]
[1722091658328,0.435811,69129.0,69128.0,0.09166981]
[1722091658588,0.00184,69129.0,69128.0,0.0815]
[1722091658775,0.146497,69129.0,69128.0,0.0815]
[1722091659754,0.435811,69129.0,69128.0,0.0815]
[1722091659978,0.725125,69129.0,69128.0,0.0815]
[1722091660144,0.433995,69125.0,69124.0,0.0616]
[1722091660346,0.434002,69124.0,69123.0,0.0815]
[1722091660547,0.434002,69124.0,69118.0,0.0616]
[1722091660548,0.434034,69119.0,69118.0,0.1431]
[1722091661323,0.434034,69119.0,69118.0,0.0815]
[1722091661445,0.434034,69119.0,69115.0,0.008954]
[1722091661446,0.434052,69116.0,69115.0,0.008954]
[1722091662943,0.74612033,69116.0,69115.0,0.008954]
[1722091664002,0.16738433,69116.0,69115.0,0.008954]
[1722091664305,0.47946085,69116.0,69115.0,0.013954]
[1722091664508,0.76882885,69116.0,69115.0,0.013954]
[1722091664702,0.74612033,69116.0,69115.0,0.013954]
[1722091665497,0.45675233,69116.0,69115.0,0.013954]
[1722091665738,0.02270033,69116.0,69115.0,0.24014]
[1722091665888,0.02270033,69116.0,69115.0,0.529512]
[1722091666089,0.02270033,69116.0,69115.0,0.60052509]
[1722091666340,0.02270033,69116.0,69115.0,0.60352509]
[1722091666760,0.02270033,69116.0,69115.0,0.31415309]
[1722091667177,0.02270033,69116.0,69115.0,0.16946709]
[1722091667594,0.45675233,69116.0,69115.0,0.10856709]
[1722091667726,0.74612033,69116.0,69115.0,0.10856709]
[1722091667932,0.7688281,69116.0,69115.0,0.10856709]
[1722091668584,0.1900921,69116.0,69115.0,0.10856709]
[1722091668817,0.4794601,69116.0,69115.0,0.10856709]
[1722091669025,0.7688281,69116.0,69115.0,0.10856709]
[1722091669267,0.74612033,69116.0,69115.0,0.10856709]
[1722091669988,0.02270033,69116.0,69115.0,0.89289709]
[1722091670160,0.02270033,69116.0,69115.0,0.91589709]
[1722091670380,0.00084,69129.0,69128.0,0.572877]
[1722091670557,0.00084,69129.0,69128.0,0.862195]
[1722091670763,0.00084,69129.0,69128.0,0.8952932]
[1722091671540,0.00084,69129.0,69128.0,1.1846112]
[1722091672080,0.02454211,69129.0,69128.0,1.1956112]
[1722091672297,0.02354211,69129.0,69128.0,1.1846112]
[1722091672481,0.00084,69129.0,69128.0,1.1846112]
[1722091672665,0.00184,69129.0,69128.0,1.1956112]
[1722091672883,0.00184,69129.0,69128.0,0.9062932]
[1722091673092,0.00084,69129.0,69128.0,0.8952932]
[1722091673297,0.00084,69129.0,69128.0,1.1846112]
[1722091673696,0.00184,69129.0,69128.0,1.1946112]
[1722091674136,0.00184,69129.0,69128.0,1.34487077]
[1722091674718,0.00184,69129.0,69128.0,1.35675097]
[1722091674922,0.00284,69129.0,69128.0,1.37075097]
[1722091675854,0.02554181,69129.0,69128.0,1.37075097]
[1722091677368,0.02554181,69129.0,69128.0,1.08143297]
[1722091678474,0.02554181,69129.0,69128.0,0.9192932]
[1722091679748,0.02554181,69129.0,69128.0,0.1959982]
[1722091679950,0.02554181,69129.0,69128.0,0.3406572]
[1722091680162,0.02554181,69129.0,69128.0,0.6299752]
[1722091680364,0.00284,69129.0,69128.0,0.6299752]
[1722091680701,0.00284,69129.0,69128.0,0.3406572]
[1722091680908,0.00284,69129.0,69128.0,0.0340982]
[1722091681224,0.436811,69129.0,69128.0,0.0340982]
[1722091681429,0.790625,69129.0,69128.0,0.0340982]
[1722091681635,0.790625,69129.0,69128.0,0.014]
[1722091681636,0.789625,69129.0,69128.0,0.014]
[1722091681859,1.078939,69129.0,69128.0,0.014]
[1722091682023,0.144679,69119.0,69115.0,0.008954]
[1722091682378,0.144674,69121.0,69116.0,0.00995502]
[1722091682585,0.289328,69126.0,69116.0,0.00995502]
[1722091682789,0.144667,69124.0,69116.0,0.15463902]
[1722091683361,0.07134,69129.0,69117.0,0.289362]
[1722091683556,0.001,69119.0,69118.0,0.14468]
[1722091683740,0.001,69119.0,69118.0,0.15463206]
[1722091683976,0.02270616,69123.0,69118.0,0.15463206]
[1722091684131,0.02270616,69123.0,69118.0,0.00995206]
[1722091684545,0.02270616,69123.0,69120.0,0.144675]
[1722091684745,0.02270616,69123.0,69121.0,0.00994762]
[1722091684945,0.144671,69122.0,69115.0,0.153639]
[1722091685145,0.144674,69121.0,69116.0,0.01004002]
[1722091685348,0.144678,69119.0,69116.0,0.01004002]
[1722091685546,0.144676,69120.0,69116.0,0.01304002]
[1722091685953,0.144674,69121.0,69116.0,0.01304002]
[1722091686116,0.144674,69121.0,69116.0,0.01004002]
[1722091686319,0.001,69122.0,69117.0,0.289363]
[1722091686516,0.001,69122.0,69121.0,0.144673]
[1722091686798,0.02270616,69123.0,69122.0,0.144671]
[1722091686931,0.02270616,69123.0,69121.0,0.01008442]
[1722091687133,0.02270616,69123.0,69119.0,0.0603]
[1722091687338,0.02270616,69123.0,69121.0,0.144673]
[1722091687659,0.02270616,69123.0,69119.0,0.3675774]
[1722091687660,0.02270616,69123.0,69122.0,0.15475394]
[1722091688066,0.02270616,69123.0,69122.0,0.44409694]
[1722091688773,0.02270616,69123.0,69122.0,1.10218294]
[1722091688994,0.02270616,69123.0,69122.0,1.12518294]
[1722091689715,0.02270616,69123.0,69122.0,0.83583994]
[1722091690049,0.02270616,69123.0,69122.0,0.83983994]
[1722091690163,0.02270616,69123.0,69122.0,0.83583994]
[1722091690562,0.02270616,69123.0,69122.0,0.84183994]
[1722091690563,0.02370616,69123.0,69122.0,0.84183994]
[1722091691401,0.02470616,69123.0,69122.0,0.85583994]
[1722091692028,0.02470616,69123.0,69122.0,0.84983994]
[1722091692029,0.02370616,69123.0,69122.0,0.84983994]
[1722091692406,0.02470616,69123.0,69122.0,0.86383994]
[1722091692807,0.02470616,69123.0,69122.0,0.92182394]
[1722091694948,0.002,69123.0,69122.0,0.92182394]
[1722091695953,0.002,69123.0,69122.0,0.63248094]
[1722091697423,0.002,69123.0,69122.0,0.34313794]
[1722091697753,0.002,69123.0,69122.0,0.11906694]
[1722091697999,0.002,69123.0,69122.0,0.53008094]
[1722091698201,0.002,69123.0,69122.0,0.55308094]
[1722091698777,0.002,69123.0,69122.0,0.26373794]
[1722091699115,0.002,69123.0,69122.0,0.11906694]
[1722091699532,0.002,69123.0,69122.0,0.26373794]
[1722091700122,0.002,69123.0,69122.0,0.11906694]
[1722091700551,0.002,69123.0,69122.0,0.26373794]
[1722091700755,0.002,69123.0,69122.0,0.11906694]
[1722091701304,0.002,69123.0,69122.0,0.09606694]
[1722091701946,0.002,69123.0,69122.0,0.03808294]
[1722091702151,0.063,69123.0,69122.0,0.03808294]
[1722091702552,0.002,69123.0,69122.0,0.03808294]
[1722091703842,0.002,69123.0,69122.0,0.24489975]
[1722091705316,0.002,69123.0,69122.0,0.53424275]
[1722091705449,0.002,69123.0,69122.0,0.24489975]
[1722091705872,0.002,69123.0,69122.0,0.53424275]
[1722091705873,0.02470384,69123.0,69122.0,0.53424275]
[1722091706356,0.02470384,69123.0,69122.0,0.35112386]
[1722091706550,0.02370384,69123.0,69122.0,0.35112177]
[1722091706752,0.02270384,69123.0,69122.0,0.33712177]
[1722091706957,0.02370384,69123.0,69122.0,0.22689975]
[1722091707175,0.001,69123.0,69122.0,0.36012385]
[1722091707376,0.001,69123.0,69122.0,0.23989975]
[1722091707998,0.001,69123.0,69122.0,0.03308294]
[1722091708521,0.144662,69127.0,69122.0,0.02308294]
[1722091708723,0.001,69123.0,69122.0,0.03208294]
[1722091709499,0.290157,69129.0,69122.0,0.02308294]
[1722091709500,0.144661,69127.0,69122.0,0.02308294]
[1722091709897,0.145661,69127.0,69122.0,0.03008294]
[1722091710254,0.145661,69127.0,69122.0,0.01708294]
[1722091710448,0.145661,69127.0,69122.0,0.02608294]
[1722091710648,0.00084,69123.0,69122.0,0.02608294]
[1722091711610,0.06494,69123.0,69122.0,0.02608294]
[1722091711789,0.06494,69123.0,69122.0,0.01008294]
[1722091711790,0.286209,69123.0,69122.0,0.01008294]
[1722091712003,0.286209,69123.0,69122.0,0.02308294]
[1722091712182,0.14254,69123.0,69122.0,0.022]
[1722091712381,0.14254,69123.0,69122.0,0.03215042]
[1722091712584,0.06594,69123.0,69122.0,0.03215042]
[1722091713339,0.08864528,69123.0,69122.0,0.03215042]
[1722091714242,0.23331428,69123.0,69122.0,0.03215042]
[1722091715229,0.06594,69123.0,69122.0,0.03215042]
[1722091715453,0.499948,69123.0,69122.0,0.03215042]
[1722091715889,0.499948,69123.0,69122.0,0.022]
[1722091718340,1.155226,69123.0,69122.0,0.022]
[1722091718543,1.46727113,69123.0,69122.0,0.022]
[1722091718883,1.444565,69123.0,69122.0,0.022]
[1722091719089,1.444565,69123.0,69122.0,0.013]
[1722091719348,1.443565,69123.0,69122.0,0.013]
[1722091719552,1.445565,69123.0,69122.0,0.013]
[1722091720269,0.575548,69123.0,69122.0,0.013]
[1722091720916,0.144674,69121.0,69116.0,0.000924]
[1722091721116,0.430879,69123.0,69116.0,0.000924]
[1722091721318,0.144676,69120.0,69117.0,0.01017407]
[1722091721722,0.289343,69122.0,69117.0,0.01017407]
[1722091721723,0.144678,69119.0,69117.0,0.01017407]
[1722091722217,0.14468,69118.0,69117.0,0.01017407]
[1722091722750,0.14468,69118.0,69117.0,0.01317407]
[1722091722929,0.43404,69118.0,69117.0,0.01317407]
[1722091723136,0.49814,69118.0,69117.0,0.01217407]
[1722091723333,1.15346,69118.0,69117.0,0.01217407]
[1722091723541,1.15346,69118.0,69117.0,0.01517407]
[1722091724641,1.15346,69118.0,69117.0,0.01317407]
[1722091725101,1.44282,69118.0,69117.0,0.01717407]
[1722091725469,1.44282,69118.0,69117.0,0.01317407]
[1722091725861,1.44982,69118.0,69117.0,0.01417407]
[1722091726321,1.98943957,69118.0,69117.0,0.01417407]
[1722091726721,1.54982,69118.0,69117.0,0.01317407]
[1722091726948,1.54282,69118.0,69117.0,0.01317407]
[1722091727550,1.83218,69118.0,69117.0,0.01317407]
[1722091727751,1.54282,69118.0,69117.0,0.01317407]
[1722091728420,1.55682,69118.0,69117.0,0.01417407]
[1722091728617,1.54282,69118.0,69117.0,0.01317407]
[1722091728837,1.54282,69118.0,69117.0,0.01017407]
[1722091729021,1.55382,69118.0,69117.0,0.01117407]
[1722091729223,1.56782,69118.0,69117.0,0.01217407]
[1722091729421,1.57911612,69118.0,69117.0,0.01217407]
[1722091729620,1.55411612,69118.0,69117.0,0.01017407]
[1722091729956,1.56811612,69118.0,69117.0,0.01017407]
[1722091730312,1.55411612,69118.0,69117.0,0.01017407]
[1722091731269,1.56811612,69118.0,69117.0,0.01017407]
[1722091732069,1.58211612,69118.0,69117.0,0.01117407]
[1722091732299,1.56811612,69118.0,69117.0,0.01017407]
[1722091732417,1.55411612,69118.0,69117.0,0.01017407]
[1722091732618,1.56811612,69118.0,69117.0,0.01117407]
[1722091732820,1.58211612,69118.0,69117.0,0.01117407]
[1722091733025,1.60482838,69118.0,69117.0,0.01117407]
[1722091734935,1.58211612,69118.0,69117.0,0.01117407]
[1722091738198,1.60482858,69118.0,69117.0,0.01117407]
[1722091738772,1.29275612,69118.0,69117.0,0.01117407]
[1722091739955,1.37629086,69118.0,69117.0,0.01117407]
[1722091740313,1.29275612,69118.0,69117.0,0.01117407]
[1722091740932,1.58211612,69118.0,69117.0,0.01117407]
[1722091742436,1.87147612,69118.0,69117.0,0.01117407]
[1722091743566,1.84347612,69118.0,69117.0,0.01017407]
[1722091743888,1.87231612,69118.0,69117.0,0.01117407]
[1722091744064,2.02257569,69118.0,69117.0,0.01117407]
[1722091745492,1.87231612,69118.0,69117.0,0.01117407]
[1722091746273,1.29359612,69118.0,69117.0,0.01117407]
[1722091746441,1.58295612,69118.0,69117.0,0.01117407]
[1722091748235,1.29359612,69118.0,69117.0,0.01117407]
[1722091748817,0.47417612,69118.0,69117.0,0.01117407]
[1722091749023,0.17352,69118.0,69117.0,0.02795928]